bitfinex/quotes_ETHUSD_20211001
["timestamp","ask_amount","ask_price","bid_price","bid_amount"]
[1633126741387,17.19490551,3318.4,3318.3,0.003]
[1633126742386,6.71596551,3318.4,3318.3,0.003]
[1633126745687,6.73520918,3318.4,3318.3,0.003]
[1633126746287,6.68520918,3318.4,3318.3,0.003]
[1633126746487,6.68520918,3318.4,3317.2,1.23466535]
[1633126746488,0.25479112,3318.2,3317.2,1.23466535]
[1633126746687,0.003,3318.0,3317.2,0.062332]
[1633126746887,0.184,3318.0,3317.2,0.062332]
[1633126747487,0.184,3318.0,3317.4,0.71665563]
[1633126748287,4.5209,3317.7,3317.2,0.062332]
[1633126748689,4.5209,3317.7,3317.5,0.26542015]
[1633126751091,0.01905174,3317.6,3317.2,0.062332]
[1633126751291,4.52116,3317.5,3317.2,0.062332]
[1633126754097,4.52116,3317.5,3317.3,0.26555052]
[1633126756559,0.01900384,3317.4,3316.9,0.003]
[1633126756959,0.01900384,3317.4,3316.8,0.003]
[1633126757763,0.01900384,3317.4,3317.2,0.95006451]
[1633126758160,4.52152,3317.3,3317.2,0.95006451]
[1633126759566,4.52152,3317.3,3317.2,1.21564762]
[1633126759967,4.52152,3317.3,3317.2,0.26558311]
[1633126761170,4.52152,3317.3,3317.2,1.11979921]
[1633126761370,0.184,3318.0,3317.2,1.11979921]
[1633126761968,0.184,3318.0,3317.2,0.8542161]
[1633126762169,0.20306402,3318.0,3317.2,0.8542161]
[1633126762369,4.52125,3317.6,3317.2,0.8542161]
[1633126763769,4.52125,3317.6,3317.4,1.294]
[1633126763972,0.02206402,3318.0,3317.3,4.5463128]
[1633126764171,0.02206402,3318.0,3317.8,0.068103]
[1633126764771,0.02206402,3318.0,3317.8,0.84928257]
[1633126764973,0.003,3318.0,3317.8,3.081243]
[1633126765175,0.003,3318.0,3317.9,0.26535498]
[1633126767173,0.003,3318.0,3317.9,1.55935498]
[1633126767574,0.003,3318.0,3317.9,1.294]
[1633126767575,0.0221482,3318.0,3317.9,1.294]
[1633126767776,0.0221482,3318.0,3317.9,4.26168212]
[1633126767977,0.003,3318.5,3318.1,0.62773638]
[1633126768180,0.003,3318.5,3318.4,4.578797]
[1633126768376,0.003,3318.5,3318.4,3.98394684]
[1633126769175,0.003,3318.5,3318.4,0.91470852]
[1633126769376,0.003,3318.5,3318.4,2.20870852]
[1633126769774,0.003,3318.5,3318.4,5.07821351]
[1633126770576,0.003,3318.5,3318.4,5.35297969]
[1633126770777,0.003,3318.5,3318.4,2.4834747]
[1633126772979,0.003,3318.5,3318.4,2.20870852]
[1633126773179,0.01893027,3318.5,3318.4,2.20870852]
[1633126774178,0.01893027,3318.5,3318.4,0.91470852]
[1633126774979,0.01893027,3318.5,3318.4,5.10780918]
[1633126775180,0.003,3319.0,3318.5,4.5]
[1633126775379,0.003,3319.0,3318.9,0.071358]
[1633126775989,0.003,3319.0,3318.9,0.88015641]
[1633126776179,0.003,3319.0,3318.9,1.16272488]
[1633126776983,0.003,3319.0,3318.9,4.13854863]
[1633126778585,0.003,3319.0,3318.9,3.85598016]
[1633126778781,0.00385039,3319.0,3318.9,3.85598016]
[1633126779383,0.00385039,3319.0,3318.9,0.88015641]
[1633126781584,0.00385039,3319.0,3318.9,1.16272488]
[1633126782784,0.00385039,3319.0,3318.9,0.28256847]
[1633126784189,0.00385039,3319.0,3318.8,0.74546643]
[1633126786185,0.00385039,3319.0,3318.7,1.2046048]
[1633126787191,0.00385039,3319.0,3318.8,0.28260103]
[1633126787586,0.00385039,3319.0,3318.9,0.97328249]
[1633126787787,0.00385039,3319.0,3318.8,0.28260103]
[1633126788992,0.00385039,3319.0,3318.9,0.92646225]
[1633126791387,0.00385039,3319.0,3318.7,1.2046048]
[1633126792391,0.00385039,3319.0,3318.8,0.8609561]
[1633126792590,0.00385039,3319.0,3318.8,0.89355713]
[1633126793391,0.00385039,3319.0,3318.8,0.28260103]
[1633126794391,0.00385039,3319.0,3318.8,1.28249332]
[1633126794851,0.00385039,3319.0,3318.8,0.28260103]
[1633126794993,0.00385039,3319.0,3318.7,1.2046048]
[1633126795194,0.181,3318.9,3318.1,0.62773638]
[1633126795397,0.181,3318.9,3318.2,0.61832072]
[1633126795593,0.181,3318.9,3318.1,0.62773638]
[1633126795792,0.181,3318.9,3318.4,0.88550968]
[1633126796394,0.181,3318.9,3318.1,0.62773638]
[1633126796597,0.181,3318.9,3318.2,1.2053043]
[1633126796805,5.032185,3318.9,3318.2,1.2053043]
[1633126797396,5.032185,3318.9,3318.4,0.80569518]
[1633126797999,5.032185,3318.9,3318.2,1.2053043]
[1633126798399,1.80804412,3318.8,3318.2,1.2053043]
[1633126798598,0.181,3318.7,3318.2,1.2053043]
[1633126799799,0.181,3318.7,3318.6,0.71025538]
[1633126800201,0.181,3318.7,3318.2,1.2053043]
[1633126801401,0.181,3318.7,3318.3,0.92169752]
[1633126801799,0.081,3318.7,3318.3,0.92169752]
[1633126804400,4.60092,3318.7,3318.2,1.2053043]
[1633126805802,4.60092,3318.7,3318.2,1.1553043]
[1633126806401,0.081,3318.7,3318.2,1.1553043]
[1633126806601,0.081,3318.7,3318.1,0.62773638]
[1633126807003,0.031166,3318.5,3318.1,0.62773638]
[1633126807208,0.26240255,3318.3,3318.1,0.62773638]
[1633126807401,4.281,3318.2,3318.1,0.62773638]
[1633126807603,0.181,3318.2,3318.1,0.62773638]
[1633126810705,0.39730132,3318.2,3318.1,0.62773638]
[1633126811204,0.43098232,3318.2,3318.1,0.62773638]
[1633126811404,1.21750572,3318.2,3318.1,0.62773638]
[1633126811608,0.43098232,3318.2,3318.1,0.62773638]
[1633126811808,0.39730132,3318.2,3318.1,0.62773638]
[1633126812406,0.181,3318.2,3318.1,0.62773638]
[1633126815906,0.181,3318.2,3318.1,0.60973638]
[1633126819912,0.212166,3318.2,3318.1,0.60973638]
[1633126821714,9.04013,3318.7,3318.1,0.60973638]
[1633126821715,0.22025068,3318.5,3318.1,0.60973638]
[1633126821978,0.181,3318.5,3318.1,0.60973638]
[1633126822782,4.70079,3318.5,3318.1,0.60973638]
[1633126823780,4.51979,3318.5,3318.1,0.60973638]
[1633126826790,4.51979,3318.5,3318.2,0.28278018]
[1633126828394,4.343437,3318.3,3318.2,0.28278018]
[1633126828593,6.02817,3318.4,3318.2,0.28278018]
[1633126830390,4.52043,3318.3,3318.2,0.28278018]
[1633126831395,4.52043,3318.3,3318.2,0.23278018]
[1633126834201,2.19877206,3317.9,3317.8,0.95439229]
[1633126834400,2.23803813,3317.9,3317.8,1.57524175]
[1633126836398,6.75863813,3317.9,3317.8,1.57524175]
[1633126836598,6.75863813,3317.9,3317.8,0.62084946]
[1633126836799,6.75863813,3317.9,3317.7,0.62097988]
[1633126837401,2.23803813,3317.9,3317.8,0.76249683]
[1633126841403,0.03926607,3317.9,3317.8,0.76249683]
[1633126841604,0.03926607,3317.9,3317.8,1.73629365]
[1633126841804,9.85110881,3318.6,3317.8,1.73629365]
[1633126842004,9.85110881,3318.6,3317.9,0.62133729]
[1633126842405,4.52013,3318.2,3317.9,0.62133729]
[1633126842605,4.52013,3318.2,3318.0,0.14142267]
[1633126843006,7.53384,3318.2,3318.0,0.14142267]
[1633126843207,3.04481065,3318.2,3318.0,0.14142267]
[1633126844007,4.52056,3318.1,3318.0,0.14142267]
[1633126844208,0.03110065,3318.2,3318.0,0.14142267]
[1633126844606,3.0136375,3318.1,3318.0,0.14142267]
[1633126844807,3.0136375,3318.1,3318.0,0.76282789]
[1633126845209,7.5338775,3318.1,3318.0,0.76282789]
[1633126845806,7.5338775,3318.1,3318.0,0.14142267]
[1633126845807,7.4338775,3318.1,3318.0,0.14142267]
[1633126846809,8.33313441,3318.1,3318.0,0.14142267]
[1633126847214,3.0137992,3317.8,3317.3,0.72998399]
[1633126847411,3.0137992,3317.8,3317.4,0.62219657]
[1633126847610,3.04809102,3317.8,3317.4,0.62519657]
[1633126847811,3.04809102,3317.8,3317.5,0.6251256]
[1633126848011,4.52084,3317.7,3317.6,0.62210851]
[1633126848212,4.52084,3317.7,3317.5,0.14461818]
[1633126848411,4.52084,3317.7,3317.6,0.62213407]
[1633126852213,2.99809102,3317.8,3317.6,0.62213407]
[1633126852813,0.14292918,3317.7,3317.5,0.003]
[1633126853214,4.66376918,3317.7,3317.1,0.62523055]
[1633126853414,4.66376918,3317.7,3317.2,0.003]
[1633126853615,4.52084,3317.7,3317.2,0.14468336]
[1633126853815,4.52084,3317.7,3317.3,0.6223032]
[1633126854018,4.52084,3317.7,3317.3,0.6253032]
[1633126854219,0.003,3318.5,3317.9,3.01406]
[1633126854419,0.003,3318.5,3318.4,0.074579]
[1633126854616,0.003,3318.5,3318.4,0.69515721]
[1633126855618,0.003,3318.5,3318.4,0.62057821]
[1633126855815,0.003,3318.5,3318.4,0.62075158]
[1633126856017,0.003,3318.5,3318.0,0.62081784]
[1633126856416,4.52298,3318.5,3318.0,0.62081784]
[1633126857617,3.0133137,3318.4,3318.0,0.62081784]
[1633126858017,3.04402788,3318.4,3318.0,0.62081784]
[1633126858219,3.15674936,3318.3,3318.0,0.62081784]
[1633126858420,3.38427474,3318.3,3318.0,0.62081784]
[1633126858819,4.52035,3318.2,3318.0,0.62081784]
[1633126859223,4.52035,3318.2,3318.1,0.14143896]
[1633126859621,6.32989501,3318.2,3318.1,0.14143896]
[1633126859825,4.52035,3318.2,3318.1,0.14143896]
[1633126861620,6.33034075,3318.2,3318.1,0.14143896]
[1633126861825,4.52035,3318.2,3318.1,0.14143896]
[1633126862022,6.33034624,3318.2,3318.1,0.14143896]
[1633126863623,6.33034624,3318.2,3317.9,3.01406]
[1633126863884,4.6633875,3318.2,3318.0,0.62575585]
[1633126864625,4.52035,3318.2,3318.1,0.14145525]
[1633126864827,4.52035,3318.2,3318.1,0.76704167]
[1633126866629,6.33182742,3318.2,3318.1,0.76704167]
[1633126867235,3.0133137,3318.4,3318.3,3.27344278]
[1633126867433,0.003,3319.0,3318.8,6.94372534]
[1633126867634,0.003,3319.0,3318.9,3.91322561]
[1633126867830,0.003,3319.0,3318.9,5.1666973]
[1633126868030,0.003,3319.0,3318.9,7.29823434]
[1633126868232,0.003,3319.0,3318.9,8.59223434]
[1633126868429,0.003,3319.0,3318.9,8.77323434]
[1633126868629,0.003,3319.0,3318.9,11.63287016]
[1633126869231,0.14622965,3319.0,3318.9,11.63287016]
[1633126870232,0.003,3319.0,3318.9,0.76536192]
[1633126871032,6.4635722,3318.8,3318.2,1.17034198]
[1633126871233,6.4635722,3318.8,3318.0,0.003]
[1633126871234,0.79829915,3318.3,3318.0,0.003]
[1633126871434,0.24113868,3318.2,3318.0,0.003]
[1633126871632,3.01428,3317.9,3317.3,0.006]
[1633126871831,3.05290763,3317.9,3317.2,0.006]
[1633126872030,3.05290763,3317.9,3317.1,0.006]
[1633126872235,3.05290763,3317.9,3317.0,0.003]
[1633126872430,3.05290763,3317.9,3317.1,0.92180431]
[1633126872630,6.06718483,3317.9,3317.1,0.92180431]
[1633126872829,6.0285572,3317.9,3317.2,0.006]
[1633126873033,6.06482931,3317.9,3317.2,0.006]
[1633126873233,4.52139,3317.5,3317.2,0.006]
[1633126873432,5.73679,3317.5,3317.2,0.006]
[1633126874230,8.7510876,3317.5,3317.2,0.006]
[1633126874630,0.21343487,3317.4,3317.2,0.006]
[1633126875430,4.73496487,3317.4,3317.2,0.006]
[1633126875631,4.52153,3317.4,3317.3,0.07112677]
[1633126876033,4.99738089,3317.5,3317.3,0.07712677]
[1633126876232,3.7485976,3317.5,3317.3,0.07712677]
[1633126876432,3.0142976,3317.5,3317.4,0.006]
[1633126876632,0.70036518,3317.6,3317.4,0.006]
[1633126876633,0.6631,3317.6,3317.4,0.006]
[1633126876833,0.24113868,3318.2,3317.4,0.006]
[1633126877634,3.0138912,3317.9,3317.4,0.93946487]
[1633126878034,3.04961326,3317.9,3317.5,0.006]
[1633126878733,3.04961326,3317.9,3317.4,0.006]
[1633126878934,6.06363326,3317.9,3317.4,0.006]
[1633126879337,4.52103,3317.7,3317.4,0.006]
[1633126880335,0.21348304,3317.6,3317.4,0.006]
[1633126880536,0.21348304,3317.6,3316.9,0.75864318]
[1633126880737,3.22787304,3317.6,3317.0,0.009]
[1633126880936,4.16877304,3317.6,3317.0,0.009]
[1633126881137,0.9409,3317.6,3317.1,0.07112677]
[1633126881541,0.9409,3317.6,3317.2,0.006]
[1633126881938,0.03088733,3317.7,3317.2,0.006]
[1633126882338,0.70935322,3317.9,3317.2,0.006]
[1633126882541,3.0142085,3317.8,3317.2,0.006]
[1633126882840,4.5217,3317.5,3317.2,0.006]
[1633126883639,0.71696686,3317.4,3317.2,0.006]
[1633126883841,4.52198,3317.3,3317.2,0.006]
[1633126884439,0.782366,3317.6,3317.2,0.006]
[1633126884639,3.01473,3317.4,3317.2,0.006]
[1633126884840,0.963366,3317.6,3317.2,0.006]
[1633126885843,0.21344715,3317.5,3317.2,0.006]
[1633126886041,0.21344715,3317.5,3316.8,0.009]
[1633126886242,4.73519715,3317.5,3316.8,0.009]
[1633126886745,4.52175,3317.5,3316.9,0.07117567]
[1633126887143,3.22694918,3317.6,3317.0,0.009]
[1633126887342,0.181,3317.6,3317.0,0.009]
[1633126889941,4.70256,3317.6,3317.0,0.009]
[1633126890147,3.30636072,3317.5,3317.0,0.009]
[1633126890341,0.23962566,3317.4,3317.0,0.009]
[1633126891142,0.21339926,3317.3,3317.0,0.009]
[1633126891343,4.73597926,3317.3,3317.0,0.009]
[1633126891542,4.73597926,3317.3,3316.6,2.88053034]
[1633126891543,0.21339926,3317.3,3316.6,2.88053034]
[1633126891743,0.41364978,3317.3,3316.6,0.009]
[1633126891948,0.41364978,3317.3,3316.7,0.009]
[1633126892142,0.20025052,3317.3,3316.7,0.07124087]
[1633126892344,0.031166,3317.0,3316.7,0.07124087]
[1633126892545,0.031166,3317.0,3316.8,0.009]
[1633126893346,4.5202939,3317.1,3316.8,0.009]
[1633126893746,4.55732062,3317.1,3316.8,0.009]
[1633126894147,4.52246,3317.0,3316.8,0.009]
[1633126895352,0.03702672,3317.1,3316.8,0.009]
[1633126895547,0.181,3317.6,3316.8,0.009]
[1633126896147,0.99618062,3317.5,3316.8,0.009]
[1633126896350,0.21214851,3317.4,3316.8,0.009]
[1633126896753,0.42553589,3317.4,3316.8,0.009]
[1633126897150,0.42553589,3317.4,3316.8,0.91971942]
[1633126897548,0.42553589,3317.4,3316.9,0.009]
[1633126897751,0.21214851,3317.4,3316.9,0.08019197]
[1633126898151,0.49526979,3317.6,3317.0,0.009]
[1633126899052,0.22652337,3317.5,3317.0,0.009]
[1633126899254,3.99761437,3317.4,3316.8,0.79991139]
[1633126899451,0.34761437,3317.4,3316.5,0.065332]
[1633126899651,0.25826214,3317.5,3316.5,0.065332]
[1633126900312,0.25826214,3317.5,3316.6,0.71593176]
[1633126900313,0.003,3317.5,3316.6,0.71593176]
[1633126900517,0.2849858,3317.5,3316.6,0.71593176]
[1633126900915,0.003,3317.5,3316.6,0.71593176]
[1633126901118,3.017422,3317.5,3316.7,0.61081899]
[1633126901316,0.23032465,3317.3,3316.7,0.61081899]
[1633126901716,0.23032465,3317.3,3316.7,5.13222899]
[1633126901917,2.8,3317.2,3316.7,3.08222592]
[1633126902116,0.23032465,3317.3,3316.7,3.08222592]
[1633126902316,0.24894747,3317.2,3316.7,3.08222592]
[1633126903121,0.24070108,3317.5,3316.7,3.08222592]
[1633126903319,4.52456,3317.5,3316.8,0.03562858]
[1633126903518,0.24730186,3317.4,3316.8,0.03562858]
[1633126903918,0.003,3317.5,3317.1,1.294]
[1633126904121,0.003,3317.5,3316.8,0.03562858]
[1633126904319,0.003,3317.5,3316.8,4.55692858]
[1633126904919,0.003,3317.5,3317.4,0.9023987]
[1633126905117,0.003,3317.5,3317.1,3.08638022]
[1633126905318,0.003,3317.5,3317.1,6.02686]
[1633126905519,0.003,3317.5,3317.0,6.092333]
[1633126906119,0.003,3317.5,3317.2,1.294]
[1633126906320,0.003,3317.5,3317.0,0.065203]
[1633126906519,0.003,3317.5,3316.8,0.03562858]
[1633126907719,0.24898365,3317.4,3317.0,4.5206]
[1633126907919,0.24898365,3317.4,3317.0,5.43890372]
[1633126908719,0.003,3317.5,3317.1,0.03556338]
[1633126913124,0.003,3317.5,3317.0,0.91830372]
[1633126913327,0.24901982,3317.4,3317.0,0.91830372]
[1633126914126,0.003,3317.5,3317.0,0.91830372]
[1633126914327,0.003,3317.5,3317.1,0.03556338]
[1633126918736,0.24901996,3317.4,3316.9,5.37005168]
[1633126919538,0.24901996,3317.4,3316.9,0.84923168]
[1633126919735,0.003,3317.5,3317.0,0.03557968]
[1633126922736,4.52414,3317.5,3317.0,0.03557968]
[1633126923337,0.003,3317.5,3317.0,0.03557968]
[1633126924139,0.003,3317.5,3317.0,4.52069]
[1633126924339,0.24900809,3317.4,3317.0,4.52069]
[1633126924939,3.26335809,3317.4,3316.7,0.181]
[1633126925140,3.88815,3317.4,3316.5,0.003]
[1633126925341,3.88815,3317.4,3317.1,0.03556338]
[1633126925342,2.9305668,3317.3,3317.1,0.03556338]
[1633126925541,3.92089806,3317.4,3317.1,0.03556338]
[1633126925743,3.0143494,3317.3,3317.1,0.03556338]
[1633126926141,4.52169,3317.2,3317.1,0.03556338]
[1633126926544,3.051305,3317.3,3317.1,0.03556338]
[1633126926742,1.8389,3317.2,3317.1,0.03556338]
[1633126929744,2.08789621,3317.2,3316.7,0.88739346]
[1633126930344,2.08789621,3317.2,3316.7,5.40856346]
[1633126930745,1.8389,3317.2,3316.8,0.03562858]
[1633126931547,1.8389,3317.2,3316.9,4.52133]
[1633126931750,3.051305,3317.3,3316.9,4.52133]
[1633126931948,3.051305,3317.3,3317.0,0.60334903]
[1633126932151,0.7976607,3317.2,3317.0,0.60334903]
[1633126932950,0.0369556,3317.3,3317.0,0.60334903]
[1633126933152,0.003,3317.5,3317.0,0.60334903]
[1633126934151,0.72013648,3317.3,3317.0,0.60334903]
[1633126934754,4.8274184,3317.2,3317.0,0.60334903]
[1633126934954,4.8274184,3317.2,3316.8,0.03562858]
[1633126934955,2.93519528,3317.1,3316.8,0.03562858]
[1633126935153,3.06619528,3317.1,3316.5,0.003]
[1633126935354,3.06619528,3317.1,3316.5,0.60763001]
[1633126935552,3.06619528,3317.1,3316.6,0.60450218]
[1633126935756,3.1865384,3317.1,3316.5,0.003]
[1633126935953,3.0151031,3317.0,3316.3,0.60752762]
[1633126936153,4.6194506,3316.9,3316.3,0.60752762]
[1633126936355,4.6194506,3316.9,3316.6,0.03569379]
[1633126936554,1.63215146,3316.9,3316.7,0.60437723]
[1633126937153,6.15445146,3316.9,3316.7,0.60437723]
[1633126938355,6.15445146,3316.9,3316.6,0.03569379]
[1633126938756,4.52245,3316.8,3316.7,0.60419583]
[1633126939021,0.89995146,3316.9,3316.7,1.43561975]
[1633126939022,0.03275146,3316.9,3316.7,1.43561975]
[1633126939219,0.181,3317.1,3316.8,0.60383971]
[1633126940819,0.24893644,3317.0,3316.8,0.60383971]
[1633126941025,0.24893644,3317.0,3316.3,0.003]
[1633126941219,0.24893644,3317.0,3316.3,0.60677636]
[1633126941419,0.24893644,3317.0,3316.6,4.52162]
[1633126941622,0.181,3317.1,3316.6,4.52162]
[1633126941819,0.181,3317.1,3316.7,0.63948908]
[1633126942019,0.181,3317.1,3316.8,0.60375536]
[1633126945226,0.003,3317.5,3316.9,2.85808123]
[1633126945425,0.003,3317.5,3317.0,0.60427928]
[1633126945824,0.003,3317.5,3317.1,0.60404877]
[1633126946026,0.003,3317.5,3317.2,0.60424033]
[1633126946426,0.24900864,3317.4,3317.3,0.6047918]
[1633126946624,0.24900864,3317.4,3316.8,0.60475134]
[1633126947028,0.24900864,3317.4,3316.9,0.60496512]
[1633126947231,0.95311373,3317.1,3317.0,0.60484928]
[1633126947625,0.003,3317.5,3317.0,0.60484928]
[1633126948225,4.52449,3317.5,3317.0,0.60484928]
[1633126948628,0.93692148,3317.5,3317.0,0.60484928]
[1633126950226,5.45833148,3317.5,3317.0,0.60484928]
[1633126951228,4.52197,3317.2,3317.0,0.60484928]
[1633126951431,2.78190582,3317.1,3317.0,0.60484928]
[1633126951630,2.93841578,3317.1,3317.0,0.60484928]
[1633126951830,2.82282411,3317.1,3317.0,0.60484928]
[1633126952028,0.46143714,3317.1,3317.0,0.60484928]
[1633126952231,0.46143714,3317.1,3316.5,0.003]
[1633126952432,1.09047182,3317.0,3316.5,0.003]
[1633126952629,1.09047182,3317.0,3316.5,0.60560677]
[1633126952831,1.09047182,3317.0,3316.6,0.03569379]
[1633126953030,1.09047182,3317.0,3316.7,0.60552162]
[1633126953830,0.22479762,3317.0,3316.7,0.60552162]
[1633126954029,0.20069397,3317.1,3316.7,0.60552162]
[1633126954830,1.3259,3317.2,3316.7,5.12691162]
[1633126955036,0.31977856,3317.2,3316.8,0.60494091]
[1633126955235,0.31977856,3317.2,3316.9,0.60492829]
[1633126955429,0.03819803,3317.4,3317.0,0.60491199]
[1633126955634,0.003,3317.5,3317.1,0.60491919]
[1633126955831,4.52453,3317.5,3317.2,0.60493215]
[1633126956032,1.83184553,3317.4,3316.7,2.89796065]
[1633126956230,0.20293426,3317.3,3316.8,0.6051998]
[1633126956431,4.27301172,3317.5,3316.9,0.60523914]
[1633126956432,1.17262266,3317.2,3316.9,0.60523914]
[1633126956631,1.17262266,3317.2,3317.0,0.60514952]
[1633126956831,1.17262266,3317.2,3317.1,0.60513639]
[1633126957033,1.17262266,3317.2,3317.1,0.60514155]
[1633126957232,1.17262266,3317.2,3316.7,0.6049906]
[1633126957434,0.31252045,3317.4,3317.1,0.604993]
[1633126957638,0.24894887,3317.2,3317.1,0.604993]
[1633126957834,0.24894887,3317.2,3317.1,0.60506189]
[1633126958038,0.24894887,3317.2,3317.1,0.60505181]
[1633126958234,4.72836935,3317.2,3316.6,0.60507056]
[1633126958436,0.31625607,3317.3,3316.7,1.54870395]
[1633126958637,3.01748,3317.5,3316.8,0.6049292]
[1633126959237,4.52156,3317.2,3316.9,0.605081]
[1633126959435,4.52156,3317.2,3317.0,0.60595017]
[1633126959635,4.52156,3317.2,3317.1,0.60619538]
[1633126959936,4.52156,3317.2,3317.1,0.60632149]
[1633126960139,4.52156,3317.2,3316.5,1.47666164]
[1633126960336,4.52156,3317.2,3316.6,0.60658389]
[1633126961539,4.52156,3317.2,3316.7,0.6067458]
[1633126961735,4.52156,3317.2,3316.8,0.60674977]
[1633126961936,3.01471,3317.1,3316.9,0.60673912]
[1633126962136,3.01471,3317.1,3316.4,0.003]
[1633126962137,3.01471,3317.1,3317.0,0.60673196]
[1633126962337,7.5674053,3317.1,3316.4,1.43247355]
[1633126962535,7.5674053,3317.1,3316.5,0.60673486]
[1633126962739,7.5674053,3317.1,3316.5,0.60973486]
[1633126962938,0.24890096,3317.0,3316.5,0.60973486]
[1633126963335,4.77067096,3317.0,3316.5,0.60973486]
[1633126963736,4.52177,3317.0,3316.6,0.0357101]
[1633126963936,4.52177,3317.0,3316.7,0.60674045]
[1633126965940,3.0452353,3317.1,3316.8,4.43159524]
[1633126965941,0.0305253,3317.1,3316.8,4.43159524]
[1633126966139,0.003,3317.5,3316.9,0.67147686]
[1633126966338,0.003,3317.5,3317.0,0.60658301]
[1633126966939,0.71124532,3317.3,3317.0,0.60658301]
[1633126967338,1.95,3317.2,3317.1,0.60664015]
[1633126967538,1.95,3317.2,3317.1,0.60664872]
[1633126967539,2.1,3317.2,3317.1,0.60664872]
[1633126967738,0.71124532,3317.3,3316.7,0.60664886]
[1633126967942,0.30129418,3317.2,3316.7,0.60664886]
[1633126968338,0.55024333,3317.2,3316.8,0.60667546]
[1633126968537,3.0147,3316.9,3316.4,0.98075099]
[1633126968739,4.52212,3316.8,3316.5,0.003]
[1633126969138,4.52212,3316.8,3316.3,0.003]
[1633126969342,3.0461875,3316.9,3316.6,0.0357264]
[1633126969539,3.0147,3316.9,3316.6,0.0357264]
[1633126970737,7.5367,3316.9,3316.6,0.0357264]
[1633126971138,3.0147,3316.9,3316.6,0.0357264]
[1633126973340,0.03810475,3317.0,3316.6,0.0357264]
[1633126973741,0.24890123,3316.9,3316.5,0.003]
[1633126974741,3.35153551,3317.2,3316.7,0.94949496]
[1633126974953,0.03558463,3317.2,3316.7,0.94949496]
[1633126975143,3.01439,3317.4,3316.7,0.94949496]
[1633126975343,3.04958399,3317.4,3316.7,0.94949496]
[1633126975542,3.04958399,3317.4,3316.6,0.0357101]
[1633126975747,0.29280065,3317.3,3316.6,0.0357101]
[1633126975943,3.04958399,3317.4,3316.6,0.0357101]
[1633126976144,6.06403219,3317.4,3316.6,0.0357101]
[1633126976346,0.28172395,3317.3,3316.6,0.0357101]
[1633126976544,0.89391796,3317.2,3316.6,0.0357101]
[1633126978950,5.41539796,3317.2,3316.6,0.0357101]
[1633126979149,5.41539796,3317.2,3316.5,0.003]
[1633126979348,5.66433537,3317.2,3316.5,0.003]
[1633126979552,4.77041741,3317.2,3316.5,0.003]
[1633126980149,4.52148,3317.2,3316.5,4.52442]
[1633126980350,4.52148,3317.2,3316.6,0.03566119]
[1633126980549,5.2825963,3317.2,3316.6,0.03566119]
[1633126980958,0.31323063,3317.3,3316.6,0.09877919]
[1633126981152,0.003,3317.5,3316.6,4.62002919]
[1633126981952,0.003,3317.5,3316.9,0.87903047]
[1633126982152,3.01432,3317.4,3316.6,0.09877919]
[1633126982353,3.01432,3317.4,3316.6,0.03566119]
[1633126982551,3.05232361,3317.4,3316.6,0.03566119]
[1633126983153,3.05232361,3317.4,3316.7,0.94939369]
[1633126983353,3.05232361,3317.4,3316.7,5.47053369]
[1633126983560,3.05232361,3317.4,3316.8,0.59907719]
[1633126984353,4.52149,3317.1,3316.8,0.59907719]
[1633126984752,4.52149,3317.1,3316.9,0.59916494]
[1633126984954,4.52149,3317.1,3317.0,0.59916118]
[1633126985153,4.52149,3317.1,3316.4,0.60216009]
[1633126985559,0.24897359,3317.3,3316.7,0.82725143]
[1633126985756,3.01432,3317.4,3316.8,0.59921963]
[1633126985757,3.04476304,3317.4,3316.8,0.59921963]
[1633126986555,4.52119,3317.3,3316.8,0.59921963]
[1633126987557,3.04476304,3317.4,3316.8,0.59921963]
[1633126987760,4.52122,3317.3,3316.8,0.59921963]
[1633126990219,0.24896171,3317.2,3316.8,0.59921963]
[1633126990622,0.24896171,3317.2,3317.0,1.294]
[1633126990822,0.24896171,3317.2,3317.1,4.03481212]
[1633126991023,0.003,3317.5,3317.2,4.64896171]
[1633126991223,0.52268718,3319.1,3319.0,1.39309515]
[1633126991429,0.87123625,3319.6,3319.4,1.65498117]
[1633126991624,2.49574075,3320.1,3319.6,2.76987828]
[1633126991625,3.33113716,3320.1,3319.6,2.76987828]
[1633126991824,2.46,3320.1,3319.7,4.49674499]
[1633126992022,2.46,3320.1,3319.9,0.079913]
[1633126992225,2.46,3320.1,3319.9,0.260913]
[1633126992424,2.46,3320.1,3319.9,0.079913]
[1633126992624,2.46,3320.1,3319.8,0.062332]
[1633126995227,0.03574403,3320.2,3319.8,0.062332]
[1633126995425,0.72114692,3320.3,3319.8,0.062332]
[1633126995826,0.12516506,3319.9,3319.8,0.062332]
[1633126996038,0.12516506,3319.9,3319.8,1.356332]
[1633126996237,0.12516506,3319.9,3319.8,0.062332]
[1633126996839,0.85870368,3320.5,3319.9,0.15916478]
[1633126997638,0.003,3320.5,3319.9,0.15916478]
[1633126997841,2.463,3320.5,3319.9,1.45316478]
[1633126998040,2.463,3320.5,3319.9,5.1500164]
[1633126998439,2.463,3320.5,3319.9,4.54317482]
[1633126998638,2.463,3320.5,3319.9,1.63416478]
[1633126998838,2.463,3320.5,3319.9,0.34016478]
[1633126999242,2.463,3320.5,3319.9,1.63416478]
[1633127000640,2.463,3320.5,3319.9,0.34016478]
[1633127001044,0.8147939,3320.2,3319.9,0.34016478]
[1633127001244,0.12817719,3320.0,3319.6,2.76987828]
[1633127001444,1.83047719,3320.0,3319.6,2.76987828]
[1633127002043,1.33047719,3320.0,3319.6,2.76987828]
[1633127002244,4.34263719,3320.0,3319.6,2.76987828]
[1633127002444,4.34263719,3320.0,3319.7,0.22178593]
[1633127002643,4.37661573,3320.0,3319.7,0.22178593]
[1633127003246,4.51809,3319.8,3319.7,0.22178593]
[1633127004045,0.03535641,3319.9,3319.7,0.22178593]
[1633127004245,4.34263719,3320.0,3319.7,0.22178593]
[1633127004449,4.51793,3319.9,3319.7,0.22178593]
[1633127006246,4.37401976,3320.0,3319.7,0.22178593]
[1633127006648,4.37401976,3320.0,3319.6,2.76987828]
[1633127006849,0.06256475,3319.9,3319.6,2.76987828]
[1633127007648,1.11728088,3320.2,3319.6,2.76987828]
[1633127007849,1.11728088,3320.2,3319.7,0.22178593]